fUSD/lending_fUSD_20240115
["ID","MTS","AMOUNT","RATE_DAILY","PERIOD"]
[311649574,1705281039324,-1035.84772524,0.00023288,2]
[311649577,1705281039334,-1035.84772524,0.00023288,2]
[311649578,1705281039343,-1035.84772524,0.00023288,2]
[311649580,1705281039352,-1035.84772524,0.00023288,2]
[311649582,1705281039362,-1035.84772524,0.00023288,2]
[311649584,1705281039372,-1035.84772524,0.00023288,2]
[311649586,1705281039381,-1035.84772524,0.00023288,2]
[311649588,1705281039390,-1035.84772524,0.00023288,2]
[311649590,1705281039400,-1035.84772524,0.00023288,2]
[311649592,1705281039409,-1035.84772524,0.00023288,2]
[311649594,1705281039419,-1035.84772524,0.00023288,2]
[311649597,1705281039429,-1035.84772524,0.00023288,2]
[311649599,1705281039439,-1035.84772524,0.00023288,2]
[311649601,1705281039453,-1035.84772524,0.00023288,2]
[311649602,1705281039464,-1035.84772524,0.00023288,2]
[311649604,1705281039473,-1035.84772524,0.00023288,2]
[311649607,1705281039485,-1035.84772524,0.00023288,2]
[311649608,1705281039494,-1035.84772524,0.00023288,2]
[311649611,1705281039504,-1035.84772524,0.00023288,2]
[311649613,1705281039515,-1035.84772524,0.00023288,2]
[311649615,1705281039525,-1035.84772524,0.00023288,2]
[311649616,1705281039537,-1035.84772524,0.00023288,2]
[311649619,1705281039546,-1035.84772524,0.00023288,2]
[311649621,1705281039556,-1035.84772524,0.00023288,2]
[311649623,1705281039565,-951.41685095,0.00023288,2]
[311649657,1705281039871,-951.41685095,0.00023288,2]
[311649660,1705281039881,-951.41685095,0.00023288,2]
[311649663,1705281039890,-951.41685095,0.00023288,2]
[311649665,1705281039900,-951.41685095,0.00023288,2]
[311649668,1705281039909,-951.41685095,0.00023288,2]
[311649669,1705281039918,-951.41685095,0.00023288,2]
[311649671,1705281039928,-951.41685095,0.00023288,2]
[311649675,1705281039939,-951.41685095,0.00023288,2]
[311649678,1705281039948,-162.83,0.00023301,2]
[311649681,1705281039958,-155.72,0.00023311,2]
[311649684,1705281039967,-167.15,0.00023349,2]
[311649687,1705281039977,-155.72,0.00023512,2]
[311649689,1705281039986,-155.72,0.00023713,2]
[311649691,1705281039996,-2332.10590734,0.00023895,2]
[311649693,1705281040005,-155.72,0.00023914,2]
[311649694,1705281040014,-505.47,0.0002397,2]
[311649697,1705281040024,-500.0,0.00023998,2]
[311649699,1705281040033,-200.89664823,0.00024,2]
[311649701,1705281040042,-431.20316627,0.00024,2]
[311649702,1705281040052,-155.72,0.00024115,2]
[311649704,1705281040061,-164.19,0.00024197,2]
[311649706,1705281040071,-167.81,0.00024297,2]
[311649709,1705281040080,-155.72,0.00024316,2]
[311649710,1705281040089,-162.83,0.00024348,2]
[311649713,1705281040099,-369.3,0.00024516,2]
[311649715,1705281040108,-193.37650752,0.00024644,9]
[311649716,1705281040118,-153.06,0.00024652,2]
[311649719,1705281040127,-3000.0,0.00024658,2]
[311649721,1705281040137,-250.0,0.00024658,2]
[311649723,1705281040147,-497.73,0.00024744,2]
[311649725,1705281040157,-1000.0,0.00024799,2]
[311649727,1705281040166,-2332.10590734,0.00024892,2]
[311649729,1705281040175,-505.47,0.00024949,2]
[311649731,1705281040186,-508.43471138,0.00025,2]
[311649733,1705281040195,-1000.0,0.00025,2]
[311649735,1705281040205,-303.07385153,0.00025,2]
[311649737,1705281040215,-200.0,0.00025,2]
[311649739,1705281040226,-1350.0,0.00025,3]
[311649741,1705281040235,-167.23848345,0.00025,2]
[311649743,1705281040245,-1247.79685735,0.00025,2]
[311649745,1705281040255,-483.29560167,0.00025,2]
[311649747,1705281040264,-1583.00550367,0.00025,2]
[311649749,1705281040273,-201.87194842,0.00025,2]
[311649751,1705281040283,-493.83198123,0.00025,2]
[311649753,1705281040293,-463.26204504,0.00025,2]
[311649755,1705281040303,-1070.01161759,0.00025,2]
[311649757,1705281040312,-157.97763435,0.00025,14]
[311649759,1705281040322,-450.0,0.0002502,3]
[311649761,1705281040331,-162.83,0.00025394,2]
[311649763,1705281040341,-6298.12250041,0.00025461,3]
[311649765,1705281040350,-1574.53062511,0.00025461,3]
[311649767,1705281040360,-226.07813977,0.00025461,3]
[311649769,1705281040369,-1000.0,0.00025461,3]
[311649771,1705281040378,-1000.0,0.00025519,3]
[311649773,1705281040388,-5066.94765393,0.00025557,3]
[311649775,1705281040397,-188.73180696,0.0002558,3]
[311649777,1705281040406,-193.22977762,0.00025612,3]
[311649779,1705281040416,-153.06,0.00025774,2]
[311649781,1705281040425,-207.0,0.000258,2]
[311649783,1705281040435,-2332.10590734,0.0002589,2]
[311649785,1705281040445,-505.47,0.00025927,2]
[311649786,1705281040454,-502.27,0.00025971,2]
[311649787,1705281040463,-150.0,0.00026079,2]
[311649788,1705281040472,-164.19,0.00026277,2]
[311649789,1705281040482,-209.0,0.00026322,2]
[311649790,1705281040491,-1268.0,0.00026343,2]
[311649791,1705281040501,-1932.0,0.00026343,2]
[311649792,1705281040510,-425.0,0.00026343,2]
[311649793,1705281040520,-884.0,0.00026343,2]
[311649795,1705281040530,-235.0,0.00026343,2]
[311649797,1705281040539,-162.505,0.00026343,2]
[311649799,1705281040549,-370.927,0.00026343,2]
[311649801,1705281040559,-41885.0,0.00026361,2]
[311649803,1705281040569,-2271.0,0.00026361,2]
[311649805,1705281040578,-1303.577,0.00026361,2]
[311649807,1705281040587,-2903.0,0.00026361,2]
[311649809,1705281040596,-4170.0,0.00026361,2]
[311649811,1705281040607,-19688.0,0.00026361,2]
[311649813,1705281040616,-1029.0,0.00026361,2]
[311649815,1705281040626,-150.0,0.00026361,2]
[311649817,1705281040636,-193.37650752,0.00026389,11]
[311649819,1705281040645,-50000.0,0.00026405,2]
[311649821,1705281040654,-50000.0,0.00026405,2]
[311649823,1705281040663,-162.83,0.00026441,2]
[311649825,1705281040673,-2218.428,0.00026441,2]
[311649827,1705281040683,-262.744,0.00026441,2]
[311649829,1705281040693,-1354.0,0.00026441,2]
[311649831,1705281040702,-2913.689,0.00026441,2]
[311649833,1705281040711,-1916.029,0.00026441,2]
[311649835,1705281040721,-944.0,0.00026441,2]
[311649837,1705281040730,-839.0,0.00026441,2]
[311649839,1705281040739,-8407.41,0.00026575,2]
[311649841,1705281040749,-1316.15,0.00026575,2]
[311649843,1705281040758,-207.0,0.0002667,2]
[311649845,1705281040768,-369.3,0.0002678,2]
[311649847,1705281040777,-2332.10590734,0.00026887,3]
[311649849,1705281040788,-153.06,0.00026896,2]
[311649851,1705281040799,-5000.0,0.000269,2]
[311649854,1705281040809,-505.47,0.00026906,2]
[311649855,1705281040818,-1400.0,0.00027,3]
[311649857,1705281040828,-415.79407686,0.00027,2]
[311649860,1705281040837,-4284.48807039,0.000273,2]
[311649862,1705281040847,-4284.48807039,0.000273,2]
[311649864,1705281040857,-4284.48807039,0.000273,2]
[311649866,1705281040866,-4284.48807039,0.000273,2]
[311649868,1705281040876,-4284.48807039,0.000273,2]
[311649869,1705281040886,-4284.48807039,0.000273,2]
[311649871,1705281040896,-4284.48807039,0.000273,2]
[311649874,1705281040906,-4284.48807039,0.000273,2]
[311649876,1705281040916,-4284.48807039,0.000273,2]
[311649878,1705281040925,-4284.48807039,0.000273,2]
[311649879,1705281040938,-4284.48807039,0.000273,2]
[311649881,1705281040947,-4284.48807039,0.000273,2]
[311649883,1705281040958,-4284.48807039,0.000273,2]
[311649885,1705281040968,-4284.48807039,0.000273,2]
[311649888,1705281040978,-4284.48807039,0.000273,2]
[311649890,1705281040987,-4284.48807039,0.000273,2]
[311649892,1705281040998,-155.0,0.00027397,2]
[311649894,1705281041008,-2500.0,0.00027397,4]
[311649896,1705281041018,-250.0,0.00027397,2]
[311649898,1705281041029,-14046.36,0.00027397,2]
[311649900,1705281041040,-5690.6930067,0.000274,2]
[311649902,1705281041049,-250.0,0.000274,2]
[311649904,1705281041059,-8000.0,0.000274,2]
[311649905,1705281041073,-1610.85,0.000274,2]
[311649907,1705281041083,-1610.85,0.000274,2]
[311649909,1705281041093,-1610.85,0.000274,2]
[311649912,1705281041103,-1610.85,0.000274,2]
[311649914,1705281041114,-1610.85,0.000274,2]
[311649916,1705281041124,-1610.85,0.000274,2]
[311649917,1705281041134,-497.73,0.00027494,2]
[311649919,1705281041143,-450.0,0.000275,3]
[311649922,1705281041153,-207.0,0.0002754,2]
[311649924,1705281041163,-14046.36,0.00027556,2]
[311649926,1705281041173,-50253.0,0.000276,2]
[311649928,1705281041185,-3975.0,0.000276,2]
[311649930,1705281041195,-6771.00777264,0.00027711,6]
[311649932,1705281041205,-630.0,0.00027711,5]
[311649934,1705281041215,-14046.36,0.00027714,2]
[311649936,1705281041225,-158.37,0.0002782,2]
[311649938,1705281041235,-14046.36,0.00027872,2]
[311649940,1705281041244,-505.47,0.00027884,2]
[311649942,1705281041254,-2332.10590734,0.00027885,3]
[311649944,1705281041264,-161.0,0.00027885,2]
[311649946,1705281041274,-22296.66041271,0.00028,2]
[311649948,1705281041283,-202.15120204,0.00028,2]
[311649950,1705281041293,-687.85574589,0.00028,2]
[311649952,1705281041303,-891.68447722,0.00028,2]
[311649954,1705281041312,-3000.0,0.00028,2]
[311649956,1705281041321,-3000.0,0.0002801,2]
[311649958,1705281041331,-153.06,0.00028018,2]
[311649960,1705281041340,-3000.0,0.0002802,2]
[311649962,1705281041350,-3000.0,0.0002803,2]
[311649964,1705281041359,-14046.36,0.0002803,2]
[311649966,1705281041368,-3000.0,0.0002804,2]
[311649968,1705281041378,-3000.0,0.0002805,2]
[311649970,1705281041387,-3000.0,0.0002806,2]
[311649972,1705281041397,-3000.0,0.0002807,2]
[311649974,1705281041406,-3000.0,0.0002808,2]
[311649976,1705281041415,-3000.0,0.0002809,2]
[311649978,1705281041424,-3000.0,0.000281,2]
[311649980,1705281041437,-3000.0,0.0002811,2]
[311649982,1705281041449,-3000.0,0.0002812,2]
[311649984,1705281041459,-3000.0,0.0002813,2]
[311649986,1705281041469,-193.37650752,0.00028135,14]
[311649988,1705281041478,-3000.0,0.0002814,2]
[311649990,1705281041490,-3000.0,0.0002815,2]
[311649992,1705281041501,-3000.0,0.0002816,2]
[311649994,1705281041510,-3000.0,0.0002817,2]
[311649996,1705281041521,-3000.0,0.0002818,2]
[311649998,1705281041532,-500.0,0.00028188,2]
[311650000,1705281041543,-500.0,0.00028188,2]
[311650003,1705281041553,-500.0,0.00028188,2]
[311650004,1705281041563,-500.0,0.00028188,2]
[311650007,1705281041574,-500.0,0.00028188,2]
[311650009,1705281041584,-500.0,0.00028188,2]
[311650011,1705281041593,-500.0,0.00028188,2]
[311650013,1705281041603,-500.0,0.00028188,2]
[311650014,1705281041613,-500.0,0.00028188,2]
[311650017,1705281041623,-500.0,0.00028188,2]
[311650018,1705281041633,-500.0,0.00028188,2]
[311650020,1705281041644,-500.0,0.00028188,2]
[311650022,1705281041654,-500.0,0.00028188,2]
[311650025,1705281041664,-500.0,0.00028188,2]
[311650027,1705281041674,-500.0,0.00028188,2]
[311650028,1705281041688,-500.0,0.00028188,2]
[311650031,1705281041698,-500.0,0.00028188,2]
[311650033,1705281041707,-500.0,0.00028188,2]
[311650035,1705281041718,-500.0,0.00028188,2]
[311650036,1705281041728,-500.0,0.00028188,2]
[311650038,1705281041738,-500.0,0.00028188,2]
[311650041,1705281041747,-500.0,0.00028188,2]
[311650043,1705281041758,-500.0,0.00028188,2]
[311650045,1705281041769,-500.0,0.00028188,2]
[311650046,1705281041779,-500.0,0.00028188,2]
[311650049,1705281041789,-500.0,0.00028188,2]
[311650050,1705281041799,-500.0,0.00028188,2]
[311650052,1705281041809,-500.0,0.00028188,2]
[311650055,1705281041820,-500.0,0.00028188,2]
[311650057,1705281041831,-500.0,0.00028188,2]
[311650058,1705281041842,-500.0,0.00028188,2]
[311650060,1705281041851,-500.0,0.00028188,2]
[311650063,1705281041862,-500.0,0.00028188,2]
[311650064,1705281041874,-500.0,0.00028188,2]
[311650067,1705281041884,-500.0,0.00028188,2]
[311650069,1705281041894,-500.0,0.00028188,2]
[311650071,1705281041904,-500.0,0.00028188,2]
[311650072,1705281041914,-500.0,0.00028188,2]
[311650075,1705281041924,-500.0,0.00028188,2]
[311650077,1705281041937,-500.0,0.00028188,2]
[311650079,1705281041946,-500.0,0.00028188,2]
[311650080,1705281041955,-500.0,0.00028188,2]
[311650083,1705281041965,-500.0,0.00028188,2]
[311650085,1705281041974,-500.0,0.00028188,2]
[311650087,1705281041984,-500.0,0.00028188,2]
[311650089,1705281041995,-500.0,0.00028188,2]
[311650091,1705281042004,-500.0,0.00028188,2]
[311650093,1705281042016,-500.0,0.00028188,2]
[311650095,1705281042026,-500.0,0.00028188,2]
[311650096,1705281042036,-500.0,0.00028188,2]
[311650099,1705281042045,-500.0,0.00028188,2]
[311650101,1705281042060,-14046.36,0.00028189,2]
[311650103,1705281042069,-3000.0,0.0002819,2]
[311650105,1705281042080,-3000.0,0.000282,2]
[311650107,1705281042089,-3000.0,0.0002821,2]
[311650109,1705281042099,-3000.0,0.0002822,2]
[311650111,1705281042109,-3000.0,0.0002823,2]
[311650113,1705281042119,-3000.0,0.0002824,2]
[311650115,1705281042128,-3306.729071,0.0002825,2]
[311650117,1705281042137,-289.52628459,0.00028258,2]
[311650119,1705281042146,-2018.478868,0.000283,2]
[311650121,1705281042155,-167.81,0.00028307,2]
[311650123,1705281042164,-300.0,0.00028346,2]
[311650125,1705281042174,-14046.36,0.00028347,2]
[311650127,1705281042184,-205.0,0.00028384,2]
[311650129,1705281042193,-207.0,0.000284,2]
[311650131,1705281042202,-14046.36,0.00028505,2]
[311650133,1705281042212,-14046.36,0.00028664,2]
[311650135,1705281042222,-155.0,0.00028767,2]
[311650137,1705281042232,-6988.0,0.000288,2]
[311650139,1705281042241,-14046.36,0.00028822,2]
[311650141,1705281042251,-502.27,0.00028857,2]
[311650143,1705281042260,-505.47,0.00028863,2]
[311650145,1705281042270,-2332.10590734,0.00028882,4]
[311650147,1705281042280,-1450.0,0.00029,3]
[311650149,1705281042289,-1500.0,0.00029,7]
[311650151,1705281042298,-3547.86371988,0.00029,15]
[311650153,1705281042308,-369.3,0.00029044,2]
[311650155,1705281042318,-153.06,0.0002914,2]
[311650157,1705281042327,-294.11,0.0002914,2]
[311650159,1705281042336,-418.07,0.0002914,2]
[311650161,1705281042346,-408.24,0.0002914,2]
[311650163,1705281042355,-150.0,0.0002914,2]
[311650165,1705281042364,-314.34,0.0002914,2]
[311650167,1705281042374,-150.0,0.0002914,2]
[311650170,1705281042383,-150.0,0.0002914,2]
[311650172,1705281042392,-314.34,0.0002914,2]
[311650175,1705281042402,-588.03,0.0002914,2]
[311650178,1705281042411,-314.34,0.0002914,2]
[311650180,1705281042420,-294.11,0.0002914,2]
[311650183,1705281042430,-508.15,0.0002914,2]
[311650186,1705281042440,-294.11,0.0002914,2]
[311650190,1705281042453,-314.34,0.0002914,2]
[311650192,1705281042463,-239.35,0.0002914,2]
[311650195,1705281042473,-150.0,0.0002914,2]
[311650197,1705281042483,-302.78,0.00029194,2]
[311650201,1705281042493,-207.0,0.0002927,2]
[311650203,1705281042503,-1000.0,0.000293,2]
[311650206,1705281042513,-2000.0,0.000293,2]
[311650208,1705281042522,-1930.0,0.00029343,2]
[311650209,1705281042531,-425.0,0.00029343,2]
[311650212,1705281042540,-2271.0,0.00029361,2]
[311650214,1705281042549,-2903.0,0.00029361,2]
[311650216,1705281042557,-1864.437,0.00029361,2]
[311650217,1705281042567,-18595.977,0.00029361,2]
[311650218,1705281042576,-1029.0,0.00029361,2]
[311650219,1705281042585,-151.04115,0.00029448,2]
[311650220,1705281042594,-151.04115,0.00029448,2]
[311650222,1705281042603,-151.04115,0.00029448,2]
[311650224,1705281042612,-151.04115,0.00029448,2]
[311650226,1705281042621,-151.04115,0.00029448,2]
[311650228,1705281042630,-151.04115,0.00029448,2]
[311650230,1705281042640,-151.04115,0.00029448,2]
[311650232,1705281042649,-151.04115,0.00029448,2]
[311650234,1705281042658,-187.78095067,0.000295,3]
[311650236,1705281042667,-175.36700291,0.000298,2]
[311650238,1705281042676,-150.0,0.00029811,2]
[311650240,1705281042686,-505.47,0.00029841,2]
[311650242,1705281042695,-2332.10590734,0.0002988,4]
[311650244,1705281042705,-193.37650752,0.0002988,17]
[311650246,1705281042715,-188553.7485512,0.000299,3]
[311650248,1705281042724,-269.299242,0.000299,7]
[311650250,1705281042733,-166.627512,0.000299,7]
[311650252,1705281042743,-166.627512,0.000299,7]
[311650254,1705281042752,-243.836447,0.000299,7]
[311650256,1705281042762,-243.836447,0.000299,7]
[311650259,1705281042771,-151.0,0.000299,7]
[311650261,1705281042781,-151.0,0.000299,7]
[311650262,1705281042791,-372.61759,0.000299,7]
[311650265,1705281042800,-372.61759,0.000299,7]
[311650267,1705281042809,-228.659212,0.000299,7]
[311650268,1705281042819,-200.0,0.000299,10]
[311650270,1705281042828,-198.320682,0.000299,7]
[311650272,1705281042838,-151.0,0.000299,7]
[311650275,1705281042847,-151.0,0.000299,7]
[311650277,1705281042856,-1102.146646,0.000299,7]
[311650279,1705281042866,-1102.146646,0.000299,7]
[311650281,1705281042875,-151.0,0.000299,7]
[311650283,1705281042885,-1000.0,0.000299,2]
[311650285,1705281042895,-209.56426997,0.00029949,4]
[311650287,1705281042904,-418.07,0.00029962,2]
[311650288,1705281042913,-150.0,0.00029962,2]
[311650291,1705281042922,-300.0,0.00029962,2]
[311650293,1705281042933,-150.0,0.00029962,2]
[311650294,1705281042943,-150.0,0.00029962,2]
[311650297,1705281042953,-150.0,0.00029962,2]
[311650299,1705281042962,-314.34,0.00029962,2]
[311650300,1705281042971,-418.07,0.00029962,2]
[311650303,1705281042980,-294.11,0.00029962,2]
[311650305,1705281042989,-372.24,0.00029962,2]
[311650307,1705281042998,-150.0,0.00029962,2]
[311650309,1705281043007,-418.07,0.00029962,2]
[311650311,1705281043017,-294.11,0.00029962,2]
[311650313,1705281043026,-314.34,0.00029962,2]
[311650314,1705281043035,-438.91,0.00029962,2]
[311650317,1705281043045,-294.11,0.00029962,2]
[311650319,1705281043054,-418.07,0.00029962,2]
[311650320,1705281043063,-418.07,0.00029962,2]
[311650322,1705281043072,-815.77,0.00029967,2]
[311650324,1705281043082,-1902.5510036,0.00029977,2]
[311650326,1705281043091,-575.17841263,0.0002998,3]
[311650329,1705281043101,-2308.05324275,0.0002998,7]
[311650331,1705281043111,-145019.92592007,0.0002998,2]
[311650389,1705281043652,-1610.85,0.000274,2]
[311650391,1705281043662,-1610.85,0.000274,2]
[311650393,1705281043671,-1610.85,0.000274,2]
[311650395,1705281043680,-1286.89966833,0.000274,2]
[311650398,1705281043705,-323.95033167,0.000274,2]
[311650400,1705281043714,-5809.11967263,0.0002998,2]
[311650403,1705281043732,-981.94036338,0.0002998,2]
[311650429,1705281043961,-312.52609998,0.0002998,2]
[311650493,1705281044628,-340.99400007,0.000273,2]
[311650496,1705281044651,-2746.69853981,0.000273,2]
[311650499,1705281044663,-465.15169898,0.000273,2]
[311650502,1705281044681,-731.64383153,0.000273,2]
[311650504,1705281044691,-693.72497414,0.0002998,2]
[311650506,1705281044702,-6849.56120875,0.0002998,2]
[311650509,1705281044719,-2134.12136116,0.0002998,2]
[311650511,1705281044731,-3332.51199329,0.0002998,2]
[311650513,1705281044742,-6463.30901227,0.0002998,2]
[311650516,1705281044753,-3765.05140317,0.0002998,2]
[311650664,1705281046043,-5258.76787947,0.00022895,2]
[311650666,1705281046108,-1297.37109238,0.00022895,2]
[311650683,1705281046259,-2737.33248441,0.00022895,2]
[311650686,1705281046275,-1072.49571098,0.00022895,2]
[311650688,1705281046286,-1510.54566232,0.00022895,2]
[311651212,1705281550964,595.64385803,0.00022791,2]
[311651213,1705281552325,581.48502557,0.00022791,2]
[311651217,1705281631493,496.36988169,0.00022791,2]
[311651220,1705281679064,183.79944877,0.00022695,2]
[311651221,1705281682742,1704.70178594,0.000227,2]
[311651222,1705281810179,155.73,0.00021905,2]
[311651223,1705281922912,332.37,0.00021803,2]
[311651224,1705282146360,-450.01075247,0.00022269,2]
[311651226,1705282213521,177.84110455,0.00022891,25]
[311651227,1705282217258,198.42529869,0.00021803,2]
[311651236,1705282231740,-46.35912922,0.00022269,2]
[311651238,1705282231749,-155.73,0.0002227,2]
[311651240,1705282231759,-1175.44947488,0.000226,2]
[311651242,1705282231769,-155.73,0.00022635,2]
[311651243,1705282231778,-165.57978251,0.00022695,2]
[311651244,1705282231788,-6954.72492037,0.000227,2]
[311651245,1705282231798,-935.9474,0.00022793,2]
[311651246,1705282231807,-2763.1746,0.00022795,2]
[311651247,1705282231817,-177.97532206,0.00022891,2]
[311651248,1705282231827,-549.27778855,0.00022892,2]
[311651249,1705282231836,-88307.72854036,0.00022893,2]
[311651250,1705282231898,-41886.86361911,0.00022893,2]
[311651251,1705282231910,-14463.1271141,0.00022893,2]
[311651252,1705282231920,-1244.95978318,0.00022893,2]
[311651253,1705282231931,-1145.65519163,0.00022895,2]
[311651254,1705282231944,-3885.93758235,0.00022895,2]
[311651255,1705282232032,-1522.4081413,0.00022895,2]
[311651256,1705282232052,-531.60879351,0.00022895,2]
[311651257,1705282232064,-428.50808,0.00022895,2]
[311651397,1705282237993,-176.10953558,0.00022269,2]
[311651399,1705282238004,-418.35528971,0.00022895,2]
[311651401,1705282238015,-342.79972744,0.00022895,2]
[311651403,1705282238026,-28482.10640374,0.00022895,2]
[311651404,1705282238037,-785.44914221,0.00022895,2]
[311651405,1705282238119,-6420.88416689,0.00022895,2]
[311651406,1705282238131,-635.96349285,0.00022895,2]
[311651407,1705282238218,-945.84036714,0.00022895,2]
[311651410,1705282238259,-2039.91657473,0.00022895,2]
[311651412,1705282238270,-692.07068358,0.00022895,2]
[311651422,1705282238350,-12650.1003,0.00022895,2]
[311651424,1705282238361,-9140.55381123,0.00022895,2]
[311651428,1705282238392,-18766.94122942,0.00022895,2]
[311651430,1705282238402,-1279.11443375,0.00022999,2]
[311651432,1705282238411,-155.73,0.00023,2]
[311651434,1705282238420,-150.0,0.00023,2]
[311651436,1705282238429,-646.88,0.00023073,2]
[311651438,1705282238438,-158.37,0.00023206,2]
[311651440,1705282238449,-438.08,0.00023242,2]
[311651442,1705282238458,-155.73,0.00023365,2]
[311651444,1705282238467,-162.81,0.00023677,2]
[311651446,1705282238476,-155.73,0.0002373,2]
[311651448,1705282238485,-200.89664823,0.00024,2]
[311651450,1705282238494,-431.20316627,0.00024,2]
[311651452,1705282238503,-332.37,0.00024066,2]
[311651454,1705282238513,-162.81,0.00024089,2]
[311651456,1705282238522,-155.73,0.00024095,2]
[311651458,1705282238531,-438.08,0.0002422,2]
[311651460,1705282238541,-295.83,0.00024449,3]
[311651462,1705282238550,-167.81,0.00024451,2]
[311651464,1705282238559,-162.81,0.000245,2]
[311651466,1705282238568,-251.33,0.00024658,2]
[311651468,1705282238578,-3000.0,0.00024658,2]
[311651470,1705282238587,-250.0,0.00024658,2]
[311651472,1705282238596,-162.81,0.00024911,2]
[311651474,1705282238606,-1851.71273849,0.00025,2]
[311651480,1705282238649,-356.24963949,0.00025,2]
[311651482,1705282238661,-80142.9280989,0.00025,2]
[311651484,1705282238671,-493.83198123,0.00025,2]
[311651487,1705282238680,-201.87194842,0.00025,2]
[311651489,1705282238690,-1583.00550367,0.00025,2]
[311651491,1705282238700,-1247.79685735,0.00025,2]
[311651493,1705282238709,-1070.01161759,0.00025,2]
[311651495,1705282238718,-483.29560167,0.00025,2]
[311651496,1705282238727,-303.21915795,0.00025,2]
[311651498,1705282238736,-463.26204504,0.00025,2]
[311651500,1705282238746,-167.23848345,0.00025,2]
[311651501,1705282238755,-1350.0,0.00025,3]
[311651502,1705282238765,-1000.0,0.00025064,2]
[311651503,1705282238774,-438.08,0.00025199,2]
[311651504,1705282238783,-205.0,0.00025384,2]
[311651505,1705282238792,-3386.15121608,0.0002547,2]
[311651506,1705282238801,-178.26713446,0.00025522,3]
[311651507,1705282238810,-1000.0,0.00025522,3]
[311651508,1705282238819,-7818.3705434,0.00025522,3]
[311651509,1705282238828,-3505.98472141,0.00025522,3]
[311651511,1705282238837,-1678.7729474,0.00025584,3]
[311651513,1705282238849,-2201.53788905,0.00025701,3]
[311651515,1705282238858,-1928.46,0.0002583,2]
[311651517,1705282238867,-949.325,0.0002583,2]
[311651519,1705282238876,-2937.973,0.0002583,2]
[311651521,1705282238885,-843.0,0.0002583,2]
[311651523,1705282238894,-646.88,0.00025957,2]
[311651525,1705282238903,-150.0,0.00026079,2]
[311651527,1705282238913,-3975.0,0.000261,2]
[311651529,1705282238923,-438.08,0.00026177,2]
[311651531,1705282238932,-50253.0,0.000262,2]
[311651533,1705282238944,-332.37,0.0002633,2]
[311651536,1705282238954,-13821.12982533,0.00026564,2]
[311651687,1705282240283,-160.0,0.00022895,2]
[311651689,1705282240292,-1274.918,0.0002583,2]
[311651691,1705282240302,-14250.50907926,0.00026564,2]
[311651694,1705282240313,-312.14320097,0.00026564,2]
[311651696,1705282240325,-320.88563414,0.00026564,2]
[311651700,1705282240352,-507.76928861,0.00026564,2]
[311651702,1705282240363,-413.00489576,0.00026564,2]
[311651711,1705282240436,-5526.78802572,0.00026564,2]
[311651713,1705282240449,-1473.82262675,0.00026564,2]
[311651715,1705282240460,-541.05532265,0.00026564,2]
[311651718,1705282240472,-740.79800934,0.00026564,2]
[311651766,1705282240987,-320.7376266,0.00026564,2]
[311651772,1705282241045,-11771.35646487,0.00026564,2]
[311651774,1705282241055,-1096.79,0.00026575,2]
[311651776,1705282241065,-153.06,0.0002673,2]
[311651778,1705282241074,-415.79407686,0.00027,2]
[311651781,1705282241084,-1400.0,0.00027,3]
[311651783,1705282241094,-161.84,0.00027062,2]
[311651785,1705282241104,-2763.82,0.000271,2]
[311651786,1705282241113,-13581.70583117,0.000271,2]
[311651969,1705282242734,-293.33957425,0.000271,2]